[Event "*** SCC Grand Prix: Titled Tuesday Blitz"]
[Site "Chess.com"]
[Date "2020.09.29"]
[Round "5"]
[White "ChrisTool2"]
[Black "IANOV0007"]
[Result "0-1"]
[WhiteElo "2329"]
[BlackElo "2488"]
[TimeControl "180+1"]
[EndTime "10:54:04 PDT"]
[Termination "IANOV0007 won by checkmate"]

1. d4 {[%clk 0:02:47.5]} 1... d6 {[%clk 0:02:59]} 2. c4 {[%clk 0:02:46.4]} 2...
g6 {[%clk 0:02:58.3]} 3. Nc3 {[%clk 0:02:45.8]} 3... Bg7 {[%clk 0:02:58.2]} 4.
e4 {[%clk 0:02:45]} 4... c5 {[%clk 0:02:57.5]} 5. Nge2 {[%clk 0:02:44]} 5... Nc6
{[%clk 0:02:56.5]} 6. Be3 {[%clk 0:02:43.2]} 6... Qa5 {[%clk 0:02:55.6]} 7. Qd2
{[%clk 0:02:41.7]} 7... Nf6 {[%clk 0:02:55.3]} 8. f3 {[%clk 0:02:41]} 8... O-O
{[%clk 0:02:55]} 9. d5 {[%clk 0:02:38.8]} 9... Ne5 {[%clk 0:02:53.7]} 10. Ng3
{[%clk 0:02:39.2]} 10... Qb4 {[%clk 0:02:51.7]} 11. Nb5 {[%clk 0:02:20.1]} 11...
Qxd2+ {[%clk 0:02:40.7]} 12. Kxd2 {[%clk 0:02:20.5]} 12... a6 {[%clk 0:02:38.2]}
13. Nc3 {[%clk 0:02:18.7]} 13... e6 {[%clk 0:02:37.3]} 14. a4 {[%clk 0:02:06.3]}
14... exd5 {[%clk 0:02:37.1]} 15. cxd5 {[%clk 0:02:04.1]} 15... Re8 {[%clk
0:02:36]} 16. a5 {[%clk 0:02:00.7]} 16... Bd7 {[%clk 0:02:34]} 17. Ra3 {[%clk
0:01:53.4]} 17... Rab8 {[%clk 0:02:31.5]} 18. Rb3 {[%clk 0:01:47.2]} 18... h5
{[%clk 0:02:29]} 19. h4 {[%clk 0:01:40.7]} 19... Nh7 {[%clk 0:02:19.1]} 20. Rb6
{[%clk 0:01:37]} 20... Bf8 {[%clk 0:02:12.6]} 21. Bd3 {[%clk 0:01:21]} 21...
Nxd3 {[%clk 0:02:07.2]} 22. Kxd3 {[%clk 0:01:20.7]} 22... Be7 {[%clk 0:02:02.9]}
23. Nf1 {[%clk 0:01:17.9]} 23... Rec8 {[%clk 0:01:54.5]} 24. Nd2 {[%clk
0:01:16]} 24... Nf6 {[%clk 0:01:51.5]} 25. Nc4 {[%clk 0:01:13.9]} 25... Ne8
{[%clk 0:01:51.2]} 26. Bg5 {[%clk 0:01:10.5]} 26... f6 {[%clk 0:01:49.4]} 27.
Bf4 {[%clk 0:01:10.6]} 27... Bd8 {[%clk 0:01:37.7]} 28. Bxd6 {[%clk 0:01:07.2]}
28... Bxb6 {[%clk 0:01:30.6]} 29. Bxb8 {[%clk 0:01:02.4]} 29... Bxa5 {[%clk
0:01:29.5]} 30. Nxa5 {[%clk 0:00:48.7]} 30... Rxb8 {[%clk 0:01:28]} 31. f4
{[%clk 0:00:48]} 31... b5 {[%clk 0:01:25.9]} 32. e5 {[%clk 0:00:47.5]} 32...
Bf5+ {[%clk 0:01:25.3]} 33. Ne4 {[%clk 0:00:41]} 33... Rd8 {[%clk 0:01:14.5]}
34. d6 {[%clk 0:00:38.2]} 34... Nxd6 {[%clk 0:01:14.3]} 35. exd6 {[%clk
0:00:36.4]} 35... Rxd6+ {[%clk 0:01:14]} 36. Kc3 {[%clk 0:00:18.8]} 36... Bxe4
{[%clk 0:01:12.9]} 37. Re1 {[%clk 0:00:19.4]} 37... f5 {[%clk 0:01:10.4]} 38.
Re3 {[%clk 0:00:19.4]} 38... Rd4 {[%clk 0:01:08.2]} 39. Nb3 {[%clk 0:00:19.2]}
39... b4# {[%clk 0:01:07.2]} 0-1

[Event "*** SCC Grand Prix: Titled Tuesday Blitz"]
[Site "Chess.com"]
[Date "2020.09.29"]
[Round "5"]
[White "Martins-BR"]
[Black "jacky72"]
[Result "0-1"]
[WhiteElo "2295"]
[BlackElo "2587"]
[TimeControl "180+1"]
[EndTime "10:54:04 PDT"]
[Termination "jacky72 won by resignation"]

1. e4 {[%clk 0:03:00.9]} 1... e5 {[%clk 0:02:58.2]} 2. Nf3 {[%clk 0:03:00.2]}
2... Nc6 {[%clk 0:02:58.5]} 3. d4 {[%clk 0:03:00.4]} 3... exd4 {[%clk
0:02:58.5]} 4. Nxd4 {[%clk 0:03:01.3]} 4... Nf6 {[%clk 0:02:58]} 5. Nc3 {[%clk
0:03:00.6]} 5... Bb4 {[%clk 0:02:57.2]} 6. Nxc6 {[%clk 0:03:00.4]} 6... bxc6
{[%clk 0:02:58.1]} 7. Bd3 {[%clk 0:03:00.4]} 7... O-O {[%clk 0:02:58.1]} 8. O-O
{[%clk 0:02:59.3]} 8... d5 {[%clk 0:02:58.5]} 9. exd5 {[%clk 0:02:59.6]} 9...
cxd5 {[%clk 0:02:59.4]} 10. h3 {[%clk 0:02:59.8]} 10... h6 {[%clk 0:02:58.7]}
11. Qf3 {[%clk 0:02:59.2]} 11... c6 {[%clk 0:02:57.9]} 12. Bf4 {[%clk
0:02:58.5]} 12... Bd6 {[%clk 0:02:58.2]} 13. Rfe1 {[%clk 0:02:48.5]} 13... Rb8
{[%clk 0:02:57.8]} 14. b3 {[%clk 0:02:47.1]} 14... Rb4 {[%clk 0:02:56.8]} 15.
Ne2 {[%clk 0:02:38]} 15... Re8 {[%clk 0:02:50.4]} 16. c3 {[%clk 0:02:25.2]}
16... Rb8 {[%clk 0:02:42.6]} 17. Nd4 {[%clk 0:02:21.2]} 17... Rxe1+ {[%clk
0:02:42.1]} 18. Rxe1 {[%clk 0:02:19.8]} 18... Qc7 {[%clk 0:02:42.5]} 19. Bxh6
{[%clk 0:02:17.1]} 19... Bd7 {[%clk 0:02:33.9]} 20. Bg5 {[%clk 0:02:06.2]} 20...
Re8 {[%clk 0:02:29.5]} 21. Rxe8+ {[%clk 0:02:00.6]} 21... Nxe8 {[%clk 0:02:30]}
22. Nf5 {[%clk 0:01:53.4]} 22... Bxf5 {[%clk 0:02:23.7]} 23. Qxf5 {[%clk
0:01:53]} 23... g6 {[%clk 0:02:22.3]} 24. Qf3 {[%clk 0:01:50.8]} 24... Be5
{[%clk 0:02:21]} 25. Bd2 {[%clk 0:01:42.2]} 25... Qe7 {[%clk 0:02:07.4]} 26. c4
{[%clk 0:01:36.5]} 26... Qe6 {[%clk 0:02:00.6]} 27. cxd5 {[%clk 0:01:34.9]}
27... cxd5 {[%clk 0:02:01.5]} 28. Qe2 {[%clk 0:01:29.5]} 28... Nf6 {[%clk
0:01:54.7]} 29. Kf1 {[%clk 0:01:24.5]} 29... Qd6 {[%clk 0:01:54.6]} 30. g3
{[%clk 0:01:19.9]} 30... Qc7 {[%clk 0:01:52.3]} 31. Kg2 {[%clk 0:01:02.2]} 31...
Kg7 {[%clk 0:01:48.6]} 32. Bg5 {[%clk 0:00:57]} 32... d4 {[%clk 0:01:45.6]} 33.
f4 {[%clk 0:00:48.5]} 33... Bd6 {[%clk 0:01:45.6]} 34. Bxf6+ {[%clk 0:00:43.4]}
34... Kxf6 {[%clk 0:01:46.5]} 35. Qe4 {[%clk 0:00:42.1]} 35... Qc3 {[%clk
0:01:46.1]} 36. g4 {[%clk 0:00:36.8]} 36... Kg7 {[%clk 0:01:42.8]} 37. Kf3
{[%clk 0:00:33.3]} 37... Qa1 {[%clk 0:01:32.3]} 38. Qe2 {[%clk 0:00:27.5]} 38...
Qh1+ {[%clk 0:01:30.6]} 39. Qg2 {[%clk 0:00:27.5]} 39... Qc1 {[%clk 0:01:30]}
40. Qe2 {[%clk 0:00:23.9]} 40... Qxf4+ {[%clk 0:01:29.8]} 41. Kg2 {[%clk
0:00:23.9]} 41... Qg3+ {[%clk 0:01:28]} 42. Kf1 {[%clk 0:00:24.5]} 42... Qxh3+
{[%clk 0:01:28.4]} 43. Ke1 {[%clk 0:00:24.5]} 43... Qh1+ {[%clk 0:01:23]} 44.
Kd2 {[%clk 0:00:23.4]} 44... Bf4+ {[%clk 0:01:23.3]} 0-1

[Event "*** SCC Grand Prix: Titled Tuesday Blitz"]
[Site "Chess.com"]
[Date "2020.09.29"]
[Round "5"]
[White "DenisQ"]
[Black "Radzio1987"]
[Result "1-0"]
[WhiteElo "2633"]
[BlackElo "2817"]
[TimeControl "180+1"]
[EndTime "10:54:05 PDT"]
[Termination "DenisQ won by resignation"]

1. Nf3 {[%clk 0:03:00.9]} 1... Nf6 {[%clk 0:02:58.8]} 2. c4 {[%clk 0:03:00.9]}
2... e6 {[%clk 0:02:58.5]} 3. g3 {[%clk 0:02:57.8]} 3... d5 {[%clk 0:02:58.1]}
4. Bg2 {[%clk 0:02:57.6]} 4... a6 {[%clk 0:02:58]} 5. b3 {[%clk 0:02:52.2]} 5...
d4 {[%clk 0:02:51.9]} 6. e3 {[%clk 0:02:50]} 6... c5 {[%clk 0:02:51.9]} 7. exd4
{[%clk 0:02:49.3]} 7... cxd4 {[%clk 0:02:52.8]} 8. O-O {[%clk 0:02:48.8]} 8...
Nc6 {[%clk 0:02:52.8]} 9. Re1 {[%clk 0:02:48.5]} 9... Be7 {[%clk 0:02:40.7]} 10.
d3 {[%clk 0:02:48]} 10... O-O {[%clk 0:02:40.4]} 11. Ne5 {[%clk 0:02:46.7]}
11... Nxe5 {[%clk 0:02:39.7]} 12. Rxe5 {[%clk 0:02:47.4]} 12... Nd7 {[%clk
0:02:39.7]} 13. Re1 {[%clk 0:02:46]} 13... e5 {[%clk 0:02:39.6]} 14. Ba3 {[%clk
0:02:32.3]} 14... Re8 {[%clk 0:02:34.2]} 15. Bxe7 {[%clk 0:02:31.5]} 15... Qxe7
{[%clk 0:02:30.9]} 16. Nd2 {[%clk 0:02:29.3]} 16... a5 {[%clk 0:02:27.5]} 17. a3
{[%clk 0:02:26.2]} 17... Nc5 {[%clk 0:02:15.2]} 18. Ne4 {[%clk 0:02:26]} 18...
Ne6 {[%clk 0:02:06.2]} 19. Qc2 {[%clk 0:02:09.3]} 19... f5 {[%clk 0:01:33.7]}
20. Nd2 {[%clk 0:02:07.1]} 20... Qd6 {[%clk 0:01:33.9]} 21. Bd5 {[%clk
0:01:34.9]} 21... Kh8 {[%clk 0:01:33]} 22. Nf3 {[%clk 0:01:34.4]} 22... Nc7
{[%clk 0:00:49.4]} 23. Ng5 {[%clk 0:01:33.7]} 23... Rf8 {[%clk 0:00:29.3]} 24.
Nf7+ {[%clk 0:01:32.9]} 24... Rxf7 {[%clk 0:00:29.1]} 25. Bxf7 {[%clk
0:01:33.8]} 25... Qf6 {[%clk 0:00:25.1]} 26. Bd5 {[%clk 0:01:33.1]} 26... f4
{[%clk 0:00:19.6]} 27. Qe2 {[%clk 0:01:28.4]} 27... Nxd5 {[%clk 0:00:19.1]} 28.
cxd5 {[%clk 0:01:23.5]} 28... Bh3 {[%clk 0:00:15.9]} 29. Qxe5 {[%clk 0:01:22.8]}
29... Qg6 {[%clk 0:00:16.2]} 30. Qxf4 {[%clk 0:01:16.4]} 30... Qxd3 {[%clk
0:00:15.6]} 31. d6 {[%clk 0:01:12.1]} 31... h6 {[%clk 0:00:15.1]} 32. Rad1
{[%clk 0:01:10.3]} 32... Qc3 {[%clk 0:00:14.6]} 33. Qxd4 {[%clk 0:01:08]} 33...
Qxb3 {[%clk 0:00:14]} 34. d7 {[%clk 0:01:05.8]} 1-0

[Event "*** SCC Grand Prix: Titled Tuesday Blitz"]
[Site "Chess.com"]
[Date "2020.09.29"]
[Round "5"]
[White "latixxa"]
[Black "kreonx"]
[Result "0-1"]
[WhiteElo "2181"]
[BlackElo "2358"]
[TimeControl "180+1"]
[EndTime "10:54:14 PDT"]
[Termination "kreonx won by resignation"]

1. Nf3 {[%clk 0:02:59.5]} 1... g6 {[%clk 0:02:59.2]} 2. e3 {[%clk 0:03:00.3]}
2... Bg7 {[%clk 0:02:56.2]} 3. d4 {[%clk 0:03:01.2]} 3... f5 {[%clk 0:02:51.8]}
4. b3 {[%clk 0:03:02]} 4... Nf6 {[%clk 0:02:51.4]} 5. Bb2 {[%clk 0:03:02.9]}
5... O-O {[%clk 0:02:51.4]} 6. Be2 {[%clk 0:03:03.8]} 6... d6 {[%clk 0:02:51.7]}
7. O-O {[%clk 0:03:04.7]} 7... Ne4 {[%clk 0:02:51.7]} 8. Nbd2 {[%clk 0:03:04.4]}
8... c5 {[%clk 0:02:41.1]} 9. c4 {[%clk 0:03:02.3]} 9... Nc6 {[%clk 0:02:37.2]}
10. Qc2 {[%clk 0:03:01.9]} 10... cxd4 {[%clk 0:02:22.6]} 11. exd4 {[%clk
0:03:00.4]} 11... Nxd2 {[%clk 0:02:18.9]} 12. Qxd2 {[%clk 0:03:00.5]} 12... e5
{[%clk 0:02:14.3]} 13. dxe5 {[%clk 0:02:58.4]} 13... dxe5 {[%clk 0:02:12.4]} 14.
Qxd8 {[%clk 0:02:45]} 14... Rxd8 {[%clk 0:02:11]} 15. c5 {[%clk 0:02:45.9]}
15... Be6 {[%clk 0:01:35.9]} 16. Ng5 {[%clk 0:02:45.2]} 16... Bd5 {[%clk
0:01:26.2]} 17. Rfd1 {[%clk 0:02:44.4]} 17... Ne7 {[%clk 0:01:24.8]} 18. Rac1
{[%clk 0:02:39.5]} 18... h6 {[%clk 0:01:23]} 19. Nf3 {[%clk 0:02:39]} 19... e4
{[%clk 0:01:19.1]} 20. Ne5 {[%clk 0:02:30.1]} 20... Nc6 {[%clk 0:01:09.3]} 21.
Nxc6 {[%clk 0:01:50.9]} 21... bxc6 {[%clk 0:01:07.1]} 22. Bxg7 {[%clk
0:01:51.8]} 22... Kxg7 {[%clk 0:01:07]} 23. g3 {[%clk 0:01:50.7]} 23... Kf6
{[%clk 0:01:06.7]} 24. Rc2 {[%clk 0:01:45.6]} 24... a5 {[%clk 0:01:04]} 25. Rcd2
{[%clk 0:01:44.5]} 25... Ke5 {[%clk 0:01:01.9]} 26. Bc4 {[%clk 0:01:38.6]} 26...
Rab8 {[%clk 0:00:54.9]} 27. a3 {[%clk 0:01:29.8]} 27... g5 {[%clk 0:00:52.6]}
28. Bxd5 {[%clk 0:01:05.7]} 28... Rxd5 {[%clk 0:00:47.6]} 29. Rxd5+ {[%clk
0:01:03.6]} 29... cxd5 {[%clk 0:00:48.5]} 30. b4 {[%clk 0:00:55.1]} 30... axb4
{[%clk 0:00:46.2]} 31. Rb1 {[%clk 0:00:55.1]} 31... b3 {[%clk 0:00:44]} 32. a4
{[%clk 0:00:52]} 32... d4 {[%clk 0:00:39.3]} 33. a5 {[%clk 0:00:51.7]} 33... Kd5
{[%clk 0:00:39.4]} 34. a6 {[%clk 0:00:51.5]} 34... Kxc5 {[%clk 0:00:37.9]} 35.
a7 {[%clk 0:00:51.4]} 35... Ra8 {[%clk 0:00:38.1]} 36. Rxb3 {[%clk 0:00:52.3]}
36... Rxa7 {[%clk 0:00:38]} 0-1

[Event "*** SCC Grand Prix: Titled Tuesday Blitz"]
[Site "Chess.com"]
[Date "2020.09.29"]
[Round "5"]
[White "bratkoo"]
[Black "novocane"]
[Result "1-0"]
[WhiteElo "2536"]
[BlackElo "2300"]
[TimeControl "180+1"]
[EndTime "10:54:19 PDT"]
[Termination "bratkoo won by resignation"]

1. e4 {[%clk 0:02:54.1]} 1... c5 {[%clk 0:02:40.3]} 2. Nf3 {[%clk 0:02:41.8]}
2... Nc6 {[%clk 0:02:39.7]} 3. d4 {[%clk 0:02:40.6]} 3... cxd4 {[%clk
0:02:39.9]} 4. Nxd4 {[%clk 0:02:40.8]} 4... e5 {[%clk 0:02:40.1]} 5. Nb5 {[%clk
0:02:39.6]} 5... d6 {[%clk 0:02:40.1]} 6. N1c3 {[%clk 0:02:37]} 6... a6 {[%clk
0:02:39.8]} 7. Na3 {[%clk 0:02:37.2]} 7... Be7 {[%clk 0:02:39.8]} 8. Nc4 {[%clk
0:02:36.7]} 8... b5 {[%clk 0:02:39.3]} 9. Ne3 {[%clk 0:02:36.5]} 9... Nf6 {[%clk
0:02:39.4]} 10. a3 {[%clk 0:02:36.9]} 10... O-O {[%clk 0:02:37.5]} 11. Ned5
{[%clk 0:02:31.9]} 11... Nxd5 {[%clk 0:02:35.7]} 12. Nxd5 {[%clk 0:02:31.4]}
12... Bg5 {[%clk 0:02:35.3]} 13. Be2 {[%clk 0:02:30.5]} 13... Bxc1 {[%clk
0:02:31.1]} 14. Rxc1 {[%clk 0:02:31.2]} 14... Be6 {[%clk 0:02:30.5]} 15. O-O
{[%clk 0:02:31.2]} 15... Ne7 {[%clk 0:02:30.6]} 16. Nxe7+ {[%clk 0:02:26.9]}
16... Qxe7 {[%clk 0:02:30.2]} 17. c4 {[%clk 0:02:27.8]} 17... bxc4 {[%clk
0:02:20.9]} 18. Bxc4 {[%clk 0:02:28.7]} 18... Rfc8 {[%clk 0:02:02.1]} 19. Bxe6
{[%clk 0:02:17.5]} 19... Qxe6 {[%clk 0:01:38.6]} 20. Qd3 {[%clk 0:02:18.4]}
20... a5 {[%clk 0:01:29.3]} 21. h3 {[%clk 0:02:11.5]} 21... g6 {[%clk
0:01:24.3]} 22. Rfd1 {[%clk 0:02:07.1]} 22... Rxc1 {[%clk 0:01:00.2]} 23. Rxc1
{[%clk 0:02:08]} 23... Rb8 {[%clk 0:00:44.5]} 24. Qd2 {[%clk 0:02:01.7]} 24...
Kg7 {[%clk 0:00:41]} 25. Rc7 {[%clk 0:01:57.5]} 25... a4 {[%clk 0:00:35.7]} 26.
Ra7 {[%clk 0:01:56.5]} 26... Qb3 {[%clk 0:00:27.7]} 27. Qxd6 {[%clk 0:01:55.2]}
27... Qxb2 {[%clk 0:00:25.4]} 28. g3 {[%clk 0:01:53]} 28... Rf8 {[%clk
0:00:16.3]} 29. Rxa4 {[%clk 0:01:51.7]} 29... Qb1+ {[%clk 0:00:13.9]} 30. Kg2
{[%clk 0:01:51.9]} 30... Qc2 {[%clk 0:00:13.6]} 31. Qxe5+ {[%clk 0:01:48.3]}
31... Kg8 {[%clk 0:00:12.9]} 32. Ra7 {[%clk 0:01:46.4]} 32... h5 {[%clk
0:00:11.9]} 33. h4 {[%clk 0:01:45.9]} 33... Qe2 {[%clk 0:00:11.1]} 34. Qd5
{[%clk 0:01:42.8]} 34... Qg4 {[%clk 0:00:06]} 35. e5 {[%clk 0:01:41.7]} 35... g5
{[%clk 0:00:05.8]} 36. e6 {[%clk 0:01:35.4]} 36... Qxe6 {[%clk 0:00:05.4]} 37.
Qxe6 {[%clk 0:01:32.4]} 37... fxe6 {[%clk 0:00:05.4]} 38. hxg5 {[%clk
0:01:33.1]} 38... Rf5 {[%clk 0:00:04.7]} 39. f4 {[%clk 0:01:33.4]} 39... e5
{[%clk 0:00:05.4]} 40. Ra5 {[%clk 0:01:32.4]} 40... h4 {[%clk 0:00:04.4]} 41.
Rxe5 {[%clk 0:01:32.2]} 41... Rf7 {[%clk 0:00:04.7]} 42. a4 {[%clk 0:01:28.8]}
42... hxg3 {[%clk 0:00:04.6]} 43. Kxg3 {[%clk 0:01:28.8]} 1-0

[Event "*** SCC Grand Prix: Titled Tuesday Blitz"]
[Site "Chess.com"]
[Date "2020.09.29"]
[Round "5"]
[White "ural58"]
[Black "midedu"]
[Result "0-1"]
[WhiteElo "2343"]
[BlackElo "2123"]
[TimeControl "180+1"]
[EndTime "10:54:20 PDT"]
[Termination "midedu won on time"]

1. e4 {[%clk 0:02:42.6]} 1... c5 {[%clk 0:02:59.2]} 2. b3 {[%clk 0:02:42]} 2...
Nc6 {[%clk 0:02:58]} 3. Bb2 {[%clk 0:02:41.9]} 3... d6 {[%clk 0:02:50.6]} 4. f4
{[%clk 0:02:39.4]} 4... e6 {[%clk 0:02:46.2]} 5. Qf3 {[%clk 0:02:32.3]} 5... Nf6
{[%clk 0:02:45.4]} 6. Nc3 {[%clk 0:02:31.6]} 6... a6 {[%clk 0:02:44.9]} 7. O-O-O
{[%clk 0:02:27]} 7... Qa5 {[%clk 0:02:38.4]} 8. Kb1 {[%clk 0:02:26.2]} 8... Be7
{[%clk 0:02:30.2]} 9. g4 {[%clk 0:02:18.6]} 9... Nd4 {[%clk 0:02:27.2]} 10. Qg2
{[%clk 0:01:51.7]} 10... Rb8 {[%clk 0:02:09.8]} 11. g5 {[%clk 0:01:51.1]} 11...
Nd7 {[%clk 0:02:09.3]} 12. Nf3 {[%clk 0:01:50.4]} 12... b5 {[%clk 0:01:54.5]}
13. Ne2 {[%clk 0:01:14.9]} 13... e5 {[%clk 0:01:48.4]} 14. h4 {[%clk 0:01:13.1]}
14... Bb7 {[%clk 0:01:37.5]} 15. Nfxd4 {[%clk 0:01:01.2]} 15... cxd4 {[%clk
0:01:33.5]} 16. c3 {[%clk 0:00:57.7]} 16... d3 {[%clk 0:01:11.6]} 17. Nc1 {[%clk
0:00:53.3]} 17... b4 {[%clk 0:01:07]} 18. Bxd3 {[%clk 0:00:48.9]} 18... exf4
{[%clk 0:00:46.1]} 19. Rhf1 {[%clk 0:00:44.8]} 19... Ne5 {[%clk 0:00:39.3]} 20.
Bc2 {[%clk 0:00:29.6]} 20... f3 {[%clk 0:00:37.4]} 21. Qg1 {[%clk 0:00:17.4]}
21... bxc3 {[%clk 0:00:36.8]} 22. dxc3 {[%clk 0:00:16.6]} 22... O-O {[%clk
0:00:36]} 23. Qg3 {[%clk 0:00:01.5]} 23... Rfc8 {[%clk 0:00:35.6]} 0-1

[Event "*** SCC Grand Prix: Titled Tuesday Blitz"]
[Site "Chess.com"]
[Date "2020.09.29"]
[Round "5"]
[White "chessmachine14"]
[Black "lucasmito"]
[Result "0-1"]
[WhiteElo "2283"]
[BlackElo "2459"]
[TimeControl "180+1"]
[EndTime "10:54:22 PDT"]
[Termination "lucasmito won on time"]

1. e4 {[%clk 0:02:58.5]} 1... c5 {[%clk 0:03:00.9]} 2. Nf3 {[%clk 0:02:56.3]}
2... d6 {[%clk 0:03:01.4]} 3. d4 {[%clk 0:02:55.4]} 3... cxd4 {[%clk 0:03:02.3]}
4. Nxd4 {[%clk 0:02:55.5]} 4... Nf6 {[%clk 0:03:03.2]} 5. Nc3 {[%clk 0:02:48.9]}
5... Nc6 {[%clk 0:03:04.1]} 6. Bc4 {[%clk 0:02:46.2]} 6... e5 {[%clk 0:02:49]}
7. Nf5 {[%clk 0:02:41.7]} 7... Nxe4 {[%clk 0:02:47.3]} 8. Nxg7+ {[%clk 0:02:41]}
8... Bxg7 {[%clk 0:02:46.6]} 9. Nxe4 {[%clk 0:02:18.9]} 9... O-O {[%clk
0:02:39.2]} 10. O-O {[%clk 0:02:09.3]} 10... Nd4 {[%clk 0:02:25.6]} 11. Bd5
{[%clk 0:01:00.4]} 11... Qa5 {[%clk 0:02:12.6]} 12. c4 {[%clk 0:00:51.4]} 12...
Be6 {[%clk 0:01:50.5]} 13. Nxd6 {[%clk 0:00:50.9]} 13... Bxd5 {[%clk 0:01:43.7]}
14. cxd5 {[%clk 0:00:51.8]} 14... f5 {[%clk 0:01:29.4]} 15. b3 {[%clk
0:00:16.7]} 15... Qxd5 {[%clk 0:01:14]} 16. Ba3 {[%clk 0:00:15.3]} 16... b5
{[%clk 0:01:03.7]} 17. Rc1 {[%clk 0:00:11.6]} 17... Rad8 {[%clk 0:01:02.3]} 18.
Nxb5 {[%clk 0:00:03.5]} 18... Qxb5 {[%clk 0:01:02.5]} 19. Bxf8 {[%clk
0:00:04.2]} 19... Ne2+ {[%clk 0:01:02.4]} 20. Qxe2 {[%clk 0:00:02.6]} 20... Qxe2
{[%clk 0:00:56.7]} 21. Bxg7 {[%clk 0:00:03.5]} 21... Kxg7 {[%clk 0:00:54.4]} 22.
h3 {[%clk 0:00:02.5]} 22... Qxa2 {[%clk 0:00:50.4]} 23. Rc7+ {[%clk 0:00:02.4]}
23... Kg6 {[%clk 0:00:48.2]} 24. Re1 {[%clk 0:00:02.6]} 24... Rd6 {[%clk
0:00:41.8]} 0-1

[Event "*** SCC Grand Prix: Titled Tuesday Blitz"]
[Site "Chess.com"]
[Date "2020.09.29"]
[Round "5"]
[White "Witik"]
[Black "Konavets"]
[Result "0-1"]
[WhiteElo "2674"]
[BlackElo "2975"]
[TimeControl "180+1"]
[EndTime "10:54:23 PDT"]
[Termination "Konavets won by checkmate"]

1. d4 {[%clk 0:03:00.9]} 1... Nf6 {[%clk 0:03:00.1]} 2. Bf4 {[%clk 0:03:00.4]}
2... d5 {[%clk 0:03:00.1]} 3. e3 {[%clk 0:03:00.8]} 3... c5 {[%clk 0:02:59.5]}
4. c3 {[%clk 0:03:01]} 4... e6 {[%clk 0:03:00]} 5. Nd2 {[%clk 0:03:00.8]} 5...
Nc6 {[%clk 0:03:00.9]} 6. Bd3 {[%clk 0:03:00.5]} 6... Bd6 {[%clk 0:03:01.1]} 7.
Bxd6 {[%clk 0:03:00.8]} 7... Qxd6 {[%clk 0:03:00.3]} 8. f4 {[%clk 0:03:01.7]}
8... cxd4 {[%clk 0:02:53.1]} 9. cxd4 {[%clk 0:02:59.7]} 9... Bd7 {[%clk
0:02:51.8]} 10. a3 {[%clk 0:02:59.5]} 10... O-O {[%clk 0:02:50.7]} 11. Ngf3
{[%clk 0:02:59.3]} 11... Rfc8 {[%clk 0:02:50.9]} 12. Ne5 {[%clk 0:02:59.3]}
12... a6 {[%clk 0:02:51.3]} 13. O-O {[%clk 0:02:58.8]} 13... Ne7 {[%clk
0:02:51.7]} 14. Rf3 {[%clk 0:02:49.2]} 14... Bb5 {[%clk 0:02:51.2]} 15. Bxb5
{[%clk 0:02:42.5]} 15... axb5 {[%clk 0:02:51.2]} 16. Rh3 {[%clk 0:02:43.1]}
16... g6 {[%clk 0:02:46.7]} 17. g4 {[%clk 0:02:42.5]} 17... Rc7 {[%clk
0:02:39.3]} 18. Qe1 {[%clk 0:02:39]} 18... Qd8 {[%clk 0:01:59.2]} 19. Qh4 {[%clk
0:02:36.5]} 19... Nc6 {[%clk 0:01:56.8]} 20. Ndf3 {[%clk 0:02:20]} 20... h5
{[%clk 0:01:54.8]} 21. gxh5 {[%clk 0:01:57.4]} 21... Nxh5 {[%clk 0:01:54.7]} 22.
Ng5 {[%clk 0:01:51.9]} 22... Nxe5 {[%clk 0:01:49.9]} 23. fxe5 {[%clk 0:01:49.4]}
23... Rac8 {[%clk 0:01:49.7]} 24. Rf1 {[%clk 0:01:36.5]} 24... Rc1 {[%clk
0:01:45.9]} 25. Rf3 {[%clk 0:01:35.2]} 25... Rxf1+ {[%clk 0:01:45.6]} 26. Rxf1
{[%clk 0:01:35.4]} 26... Rc7 {[%clk 0:01:21.1]} 27. Qg4 {[%clk 0:01:35]} 27...
Qe8 {[%clk 0:01:21.5]} 28. e4 {[%clk 0:01:17.5]} 28... Qd8 {[%clk 0:01:01.8]}
29. h4 {[%clk 0:00:49.6]} 29... dxe4 {[%clk 0:00:52.6]} 30. Qxe4 {[%clk
0:00:42.5]} 30... Ng3 {[%clk 0:00:51.4]} 31. Nxe6 {[%clk 0:00:31.6]} 31... fxe6
{[%clk 0:00:51]} 32. Qxg6+ {[%clk 0:00:31.4]} 32... Rg7 {[%clk 0:00:51.3]} 33.
Qxe6+ {[%clk 0:00:31.4]} 33... Kh7 {[%clk 0:00:51.8]} 34. Rf7 {[%clk 0:00:15.9]}
34... Qxd4+ {[%clk 0:00:51.6]} 35. Kg2 {[%clk 0:00:13.1]} 35... Qe4+ {[%clk
0:00:49.1]} 36. Kh3 {[%clk 0:00:12.9]} 36... Qh1# {[%clk 0:00:49]} 0-1

[Event "*** SCC Grand Prix: Titled Tuesday Blitz"]
[Site "Chess.com"]
[Date "2020.09.29"]
[Round "5"]
[White "Grineva_Marianna"]
[Black "Mikhail_Golubev"]
[Result "0-1"]
[WhiteElo "2263"]
[BlackElo "2457"]
[TimeControl "180+1"]
[EndTime "10:54:24 PDT"]
[Termination "Mikhail_Golubev won by resignation"]

1. d4 {[%clk 0:02:48.3]} 1... Nf6 {[%clk 0:02:58]} 2. c4 {[%clk 0:02:33]} 2...
g6 {[%clk 0:02:54.5]} 3. Nc3 {[%clk 0:02:31.6]} 3... Bg7 {[%clk 0:02:55]} 4. Nf3
{[%clk 0:02:24.2]} 4... O-O {[%clk 0:02:52.2]} 5. e4 {[%clk 0:02:24]} 5... d6
{[%clk 0:02:51.5]} 6. Be2 {[%clk 0:02:22.4]} 6... e5 {[%clk 0:02:51.6]} 7. Be3
{[%clk 0:02:21.3]} 7... Qe7 {[%clk 0:02:47.1]} 8. d5 {[%clk 0:02:07.7]} 8... Ng4
{[%clk 0:02:38.2]} 9. Bg5 {[%clk 0:02:06.1]} 9... f6 {[%clk 0:02:38.4]} 10. Bh4
{[%clk 0:02:05.6]} 10... a5 {[%clk 0:02:28.6]} 11. h3 {[%clk 0:02:02.4]} 11...
Nh6 {[%clk 0:02:28.5]} 12. g4 {[%clk 0:01:54.8]} 12... Nf7 {[%clk 0:02:27.8]}
13. Nd2 {[%clk 0:01:30.6]} 13... Bh6 {[%clk 0:02:21.7]} 14. Nf1 {[%clk
0:01:20.2]} 14... Na6 {[%clk 0:02:17.2]} 15. Ne3 {[%clk 0:01:04.5]} 15... Nc5
{[%clk 0:02:10]} 16. Bg3 {[%clk 0:01:03]} 16... Bxe3 {[%clk 0:01:24.3]} 17. fxe3
{[%clk 0:01:02.3]} 17... Ng5 {[%clk 0:01:18.7]} 18. Qc2 {[%clk 0:01:01.4]} 18...
f5 {[%clk 0:01:18.9]} 19. exf5 {[%clk 0:00:57.4]} 19... gxf5 {[%clk 0:01:19.1]}
20. O-O-O {[%clk 0:00:33.6]} 20... Nge4 {[%clk 0:01:10]} 21. Nxe4 {[%clk
0:00:24.9]} 21... Nxe4 {[%clk 0:01:09.6]} 22. gxf5 {[%clk 0:00:17.5]} 22... Nxg3
{[%clk 0:01:02.2]} 23. Rhg1 {[%clk 0:00:17.5]} 23... Qh4 {[%clk 0:00:56]} 24.
Rg2 {[%clk 0:00:13.7]} 24... Kh8 {[%clk 0:00:51.8]} 25. Bg4 {[%clk 0:00:13]}
25... Bxf5 {[%clk 0:00:45]} 26. Qf2 {[%clk 0:00:10.5]} 26... Bxg4 {[%clk
0:00:42.9]} 27. Qxg3 {[%clk 0:00:07.6]} 27... Qxg3 {[%clk 0:00:42.8]} 28. Rxg3
{[%clk 0:00:08.5]} 28... Bxd1 {[%clk 0:00:42.9]} 29. Kxd1 {[%clk 0:00:09.3]}
29... Rg8 {[%clk 0:00:43.1]} 30. Rf3 {[%clk 0:00:08.8]} 30... Raf8 {[%clk
0:00:43.4]} 0-1